Workbook

Sheet Zisk prostupem
A1: Tepelná zátěž prostupem
A3: Skladba stěn, stropu, dveří (PUR Panel) | B3: d [mm] | C3: λ [W∙m⁻¹∙K⁻¹]
A4: Ocelový plech | B4: 0.5 | C4: 50
A5: Polyuretanové jádro | B5: 80 | C5: 0.023
A6: Ocelový plech | B6: 0.5 | C6: 50
B8: Výška [mm] | C8: Šířka [mm] | D8: délka [mm] | E8: Plocha
A9: Boční stěny | B9: 2500 | C9: - | D9: 6000 | E9: =B9*D9/1000000 -> 15
A10: Zadní stěna | B10: 2500 | C10: 3000 | D10: - | E10: =B10*C10/1000000 -> 7.5
A11: Přední stěna | B11: 2500 | C11: 3000 | D11: - | E11: =B11*C11/1000000-E13 -> 6.121
A12: Strop | B12: - | C12: 3000 | D12: 6000 | E12: =C12*D12/1000000 -> 18
A13: Dveře | B13: 1970 | C13: 700 | D13: - | E13: =B13*C13/1000000 -> 1.379
C16: Tepelný odpor konstrukce R [W-1∙m²∙K²] | D16: Součinitel přestupu tepla vnitřní hi [W∙m-2∙K-2] | E16: Součinitel prostupu tepla vnější he [W∙m-2∙K-2] | F16: Vnitřní teplota [°C] | G16: Venkovní teplota [°C] | H16: U | I16: Plocha | J16: Ztráta prostupem
A17: Sklad švestek | B17: Stěna - západ | C17: =$B$4*10^(-3)/$C$4+$B$5*10^(-3)/$C$5+$B$6*10^(-3)/$C$6 -> 3.47828087 | D17: 8 | E17: 29 | F17: 1 | G17: 35 | H17: =1/(C17+1/D17+1/E17) -> 0.2748941664 | I17: =$E$9 -> 15 | J17: =H17*I17*(G17-F17) -> 140.1960248
B18: Stěna - východ | C18: =C17 -> 3.47828087 | D18: 8 | E18: 29 | F18: 1 | G18: 35 | H18: 0.2748941664 | I18: =$I$17 -> 15 | J18: =H18*I18*(G18-F18) -> 140.1960248
B19: Zadní stěna - sever | C19: =C17 -> 3.47828087 | D19: 8 | E19: 29 | F19: 1 | G19: 35 | H19: 0.2748941664 | I19: =$E$10 -> 7.5 | J19: 70.09801242
B20: Přední stěna - jih | C20: =C17 -> 3.47828087 | D20: 8 | E20: 29 | F20: 1 | G20: 35 | H20: 0.2748941664 | I20: =$E$11 -> 6.121 | J20: 57.20932454
B21: Strop | C21: =C17 -> 3.47828087 | D21: 8 | E21: 29 | F21: 1 | G21: 35 | H21: 0.2748941664 | I21: =$E$12 -> 18 | J21: 168.2352298
B22: Dveře | C22: =C18 -> 3.47828087 | D22: 8 | E22: 29 | F22: 1 | G22: 35 | H22: 0.2748941664 | I22: =$E$13 -> 1.379 | J22: 12.88868788
I23: Celkem | J23: =SUM(J17:J22) -> 588.8233044
C24: Tepelný odpor konstrukce R [W-1∙m²∙K²] | D24: Součinitel přestupu tepla vnitřní hi [W∙m-2∙K-2] | E24: Součinitel prostupu tepla vnější he [W∙m-2∙K-2] | F24: Vnitřní teplota [°C] | G24: Venkovní teplota [°C] | H24: U | I24: Plocha | J24: Ztráta prostupem
A25: Sklad okurek | B25: Stěna - západ | C25: =$B$4*10^(-3)/$C$4+$B$5*10^(-3)/$C$5+$B$6*10^(-3)/$C$6 -> 3.47828087 | D25: 8 | E25: 29 | F25: 7 | G25: 35 | H25: =1/(C25+1/D25+1/E25) -> 0.2748941664 | I25: =$E$9 -> 15 | J25: =H25*I25*(G25-F25) -> 115.4555499
B26: Stěna - východ | C26: =C25 -> 3.47828087 | D26: 8 | E26: 29 | F26: 7 | G26: 35 | H26: 0.2748941664 | I26: =$I$17 -> 15 | J26: =H26*I26*(G26-F26) -> 115.4555499
B27: Zadní stěna - sever | C27: =C25 -> 3.47828087 | D27: 8 | E27: 29 | F27: 7 | G27: 35 | H27: 0.2748941664 | I27: =$E$10 -> 7.5 | J27: 57.72777494
B28: Přední stěna - jih | C28: =C25 -> 3.47828087 | D28: 8 | E28: 29 | F28: 7 | G28: 35 | H28: 0.2748941664 | I28: =$E$11 -> 6.121 | J28: 47.11356138
B29: Strop | C29: =C25 -> 3.47828087 | D29: 8 | E29: 29 | F29: 7 | G29: 35 | H29: 0.2748941664 | I29: =$E$12 -> 18 | J29: 138.5466598
B30: Dveře | C30: =C26 -> 3.47828087 | D30: 8 | E30: 29 | F30: 7 | G30: 35 | H30: 0.2748941664 | I30: =$E$13 -> 1.379 | J30: 10.61421355
I31: Celkem | J31: =SUM(J25:J30) -> 484.9133095
C32: Tepelný odpor konstrukce R [W-1∙m²∙K²] | D32: Součinitel přestupu tepla vnitřní hi [W∙m-2∙K-2] | E32: Součinitel prostupu tepla vnější he [W∙m-2∙K-2] | F32: Vnitřní teplota [°C] | G32: Venkovní teplota [°C] | H32: U | I32: Plocha | J32: Ztráta prostupem
A33: Sklad banánů | B33: Stěna - západ | C33: =$B$4*10^(-3)/$C$4+$B$5*10^(-3)/$C$5+$B$6*10^(-3)/$C$6 -> 3.47828087 | D33: 8 | E33: 29 | F33: 13 | G33: 35 | H33: =1/(C33+1/D33+1/E33) -> 0.2748941664 | I33: =$E$9 -> 15 | J33: =H33*I33*(G33-F33) -> 90.7150749
B34: Stěna - východ | C34: =C33 -> 3.47828087 | D34: 8 | E34: 29 | F34: 13 | G34: 35 | H34: 0.2748941664 | I34: =$I$17 -> 15 | J34: =H34*I34*(G34-F34) -> 90.7150749
B35: Zadní stěna - sever | C35: =C33 -> 3.47828087 | D35: 8 | E35: 29 | F35: 13 | G35: 35 | H35: 0.2748941664 | I35: =$E$10 -> 7.5 | J35: 45.35753745
B36: Přední stěna - jih | C36: =C33 -> 3.47828087 | D36: 8 | E36: 29 | F36: 13 | G36: 35 | H36: 0.2748941664 | I36: =$E$11 -> 6.121 | J36: 37.01779823
B37: Strop | C37: =C33 -> 3.47828087 | D37: 8 | E37: 29 | F37: 13 | G37: 35 | H37: 0.2748941664 | I37: =$E$12 -> 18 | J37: 108.8580899
B38: Dveře | C38: =C34 -> 3.47828087 | D38: 8 | E38: 29 | F38: 13 | G38: 35 | H38: 0.2748941664 | I38: =$E$13 -> 1.379 | J38: 8.339739219
I39: Celkem | J39: =SUM(J33:J38) -> 381.0033146

Sheet Výkon na zchlazení
A2: Výkon na zchlazení
B4: Hmotnost [kg] | C4: Měrná tepelná kapacita | D4: Venkovní teplota | E4: Vnitřní teplota | F4: Doba na zchlazení [h] | G4: Výkon na zchlazení
A5: Švestky | B5: 500 | C5: 3726 | D5: 32 | E5: 1 | F5: 24 | G5: =B5*C5*(D5-E5)/(F5*3600) -> 668.4375
A6: Okurky | B6: 500 | C6: 4103 | D6: 32 | E6: 7 | F6: 24 | G6: =B6*C6*(D6-E6)/(F6*3600) -> 593.6053241
A7: Banány | B7: 500 | C7: 3349 | D7: 32 | E7: 13 | F7: 24 | G7: 368.2349537

Sheet Zisk dýcháním
A1: Zisk dýcháním
B3: Hmotnost [kg] | C3: Měrné dýchací teplo [mW/kg] | D3: Celkové dýchací teplo [W]
A4: Švestky | B4: 500 | C4: 7 | D4: =C4/1000*B4 -> 3.5
A5: Okurky | B5: 500 | C5: 70 | D5: =C5/1000*B5 -> 35
A6: Banány | B6: 500 | C6: 100 | D6: 50

Sheet Zisk otevíráním dveří
A1: Zisk otevíráním dveří
B3: Entalpie vnitřního vzduchu [kJ/kg] | C3: Entlapie Venkovního vzduchu [kJ/kg] | D3: Hustota vnitřního vzduchu [kg/m3] | E3: Hustota venkovního vzduchu [kg/m3] | F3: Plocha dveří [m2] | G3: Výška Dveří [m] | H3: Čas na otevření a zavření dveří [s] | I3: Počet otevření dveří [-] | J3: Čas plně otevřených dvěří [min] | K3: Časová perioda [h] | L3: Faktor otevírání dveří [-] | M3: Faktor průtoku vzduchu dveřmi [-] | N3: průtok vzduchu plně otevřenými dveřmi [m3/s] | O3: Ztráta otevíráním [W]
A4: Sklad švestek | B4: 9.6 | C4: 81.5 | D4: 1.268 | E4: 1.119 | F4: ='Zisk prostupem'!$E$13 -> 1.379 | G4: ='Zisk prostupem'!$B$13/1000 -> 1.97 | H4: 10 | I4: 2 | J4: 2 | K4: 2 | L4: =(I4*H4+60*J4)/(3600*K4) -> 0.01944444444 | M4: 0.8 | N4: =0.221*F4*D4*(1-E4/D4)^0.5*(9.81*G4)^0.5*(2/(1+(D4/E4)^(1/3)))^(3/2) -> 0.5642391959 | O4: =E4*N4*(C4-B4)*1000*L4*M4 -> 706.1675471
A5: Sklad okurek | B5: 20.3 | C5: 81.5 | D5: 1.239 | E5: 1.119 | F5: ='Zisk prostupem'!$E$13 -> 1.379 | G5: ='Zisk prostupem'!$B$13/1000 -> 1.97 | H5: 10 | I5: 2 | J5: 2 | K5: 2 | L5: =(I5*H5+60*J5)/(3600*K5) -> 0.01944444444 | M5: 0.8 | N5: =0.221*F5*D5*(1-E5/D5)^0.5*(9.81*G5)^0.5*(2/(1+(D5/E5)^(1/3)))^(3/2) -> 0.5034962501 | O5: =E5*N5*(C5-B5)*1000*L5*M5 -> 536.3685133
A6: Sklad banánů | B6: 33 | C6: 81.5 | D6: 1.211 | E6: 1.119 | F6: ='Zisk prostupem'!$E$13 -> 1.379 | G6: ='Zisk prostupem'!$B$13/1000 -> 1.97 | H6: 10 | I6: 2 | J6: 2 | K6: 2 | L6: =(I6*H6+60*J6)/(3600*K6) -> 0.01944444444 | M6: 0.8 | N6: =0.221*F6*D6*(1-E6/D6)^0.5*(9.81*G6)^0.5*(2/(1+(D6/E6)^(1/3)))^(3/2) -> 0.4383844555 | O6: =E6*N6*(C6-B6)*1000*L6*M6 -> 370.0943863

Sheet Ztráta od pers
A1: Ztráta od personálu
B3: Tepelný výkon osoby [W] | C3: Počet osob | D3: Doba pobytu [h] | E3: Ztráta [W]
A4: Sklad švestek | B4: 266 | C4: 2 | D4: 2 | E4: =B4*C4*D4/24 -> 44.33333333
A5: Sklad okurek | B5: 228 | C5: 2 | D5: 2 | E5: =B5*C5*D5/24 -> 38
A6: Sklad banánů | B6: 204 | C6: 2 | D6: 2 | E6: =B6*C6*D6/24 -> 34

Sheet Ztráta od osvětlení
A1: Ztráty od osvětlení
B3: Měrný tepelný výkon os osvětlení [W/m2] | C3: Plocha | D3: Doba zapnutí osvětlení [h] | E3: Ztráta od osvětlení [W]
A4: sklad švestek | B4: 10 | C4: ='Zisk prostupem'!E12 -> 18 | D4: 2 | E4: =B4*C4*D4/24 -> 15
A5: sklad okurek | B5: 10 | C5: =C4 -> 18 | D5: 2 | E5: =B5*C5*D5/24 -> 15
A6: sklad banánů | B6: 10 | C6: =C4 -> 18 | D6: 2 | E6: =B6*C6*D6/24 -> 15

Sheet Ztráta od ventilátoru
A1: Ztráta ventilátoru
B3: Výkon ventilátoru [W]
A4: Sklad švestek | B4: 200
A5: Sklad okurek | B5: 200
A6: Sklad hrušek | B6: 200

Sheet Ztráta odtáváním
A1: Ztráta odtáváním výparníku
B3: Ztráta odtáváním
A4: Sklad švestek | B4: =0.15*('Zisk prostupem'!J23+'Výkon na zchlazení'!G5+'Zisk dýcháním '!D4+'Zisk otevíráním dveří'!O4+'Ztráta od pers'!E4+'Ztráta od osvětlení'!E4+'Ztráta od osvětlení'!E4+'Ztráta od ventilátoru'!B4) -> 336.1892527
A5: Sklad okurek | B5: 0
A6: Sklad banánů | B6: 0

Sheet Souhrn
B2: Qp [W] | C2: Qfc [W] | D2: Qresp [W] | E2: Qd [W] | F2: Qper [W] | G2: Qlight [W] | H2: Qvent [W] | I2: Qdefr [W] | J2: Suma [W] | K2: Bezpečnost [%] | L2: Potřebný výkon [W] | M2: Vnitřní teplota [°C] | N2: Celkem [W]
A3: Chladírna švestek | B3: ='Zisk prostupem'!J23 -> 588.8233044 | C3: ='Výkon na zchlazení'!G5 -> 668.4375 | D3: ='Zisk dýcháním '!D4 -> 3.5 | E3: ='Zisk otevíráním dveří'!O4 -> 706.1675471 | F3: ='Ztráta od pers'!E4 -> 44.33333333 | G3: ='Ztráta od osvětlení'!E4 -> 15 | H3: ='Ztráta od ventilátoru'!B4 -> 200 | I3: ='Ztráta odtáváním'!B4 -> 336.1892527 | J3: =SUM(B3:I3) -> 2562.450937 | K3: 10 | L3: =(1+K3/100)*SUM(B3:I3) -> 2818.696031 | M3: 1 | N3: =SUM(L3:L5) -> 6472.037813
A4: Chladírna okurek | B4: ='Zisk prostupem'!J31 -> 484.9133095 | C4: ='Výkon na zchlazení'!G6 -> 593.6053241 | D4: ='Zisk dýcháním '!D5 -> 35 | E4: ='Zisk otevíráním dveří'!O5 -> 536.3685133 | F4: ='Ztráta od pers'!E5 -> 38 | G4: ='Ztráta od osvětlení'!E5 -> 15 | H4: ='Ztráta od ventilátoru'!B5 -> 200 | I4: ='Ztráta odtáváním'!B5 -> 0 | J4: =SUM(B4:I4) -> 1902.887147 | K4: 10 | L4: =(1+K4/100)*SUM(B4:I4) -> 2093.175861 | M4: 7
A5: Chladírna banánů | B5: ='Zisk prostupem'!J39 -> 381.0033146 | C5: ='Výkon na zchlazení'!G7 -> 368.2349537 | D5: ='Zisk dýcháním '!D6 -> 50 | E5: ='Zisk otevíráním dveří'!O6 -> 370.0943863 | F5: ='Ztráta od pers'!E6 -> 34 | G5: ='Ztráta od osvětlení'!E6 -> 15 | H5: ='Ztráta od ventilátoru'!B6 -> 200 | I5: ='Ztráta odtáváním'!B6 -> 0 | J5: 1418.332655 | K5: 10 | L5: =(1+K5/100)*SUM(B5:I5) -> 1560.16592 | M5: 13

Sheet koeficienty epsilon a Cmin
A1: Kondenzátor
A3: ε [-] | B3: 0.591
A4: Cmin [J/K] | B4: 1046
A6: Výparníky
B7: Výparník 1 | C7: Výparník 2 | D7: Výparník 3
A8: ε [-] | B8: 0.459 | C8: 0.472 | D8: 0.5393
A9: Cmin [J/K] | B9: 304 | C9: 220 | D9: 143

Sheet koeficienty dychani
A1: Potravina | C1: Švestky | F1: Okurky | I1: Banány
B2: Ti [°C] | C2: Ti [°F] | D2: mCO2 | E2: Ti [°C] | F2: Ti [°F] | G2: mCO2 | H2: Ti [°C] | I2: Ti [°F] | J2: mCO2
B3: 0 | C3: =(9*B3/5+32) -> 32 | D3: 2.5 | E3: 10 | F3: =(9*E3/5+32) -> 50 | G3: 26 | H3: 13 | I3: =(9*H3/5+32) -> 55.4 | J3: 50
B4: 10 | C4: =(9*B4/5+32) -> 50 | D4: 10 | E4: 15 | F4: =(9*E4/5+32) -> 59 | G4: =(24+33)/2 -> 28.5 | H4: 15 | I4: =(9*H4/5+32) -> 59 | J4: =(26+140)/2 -> 83
B5: 20 | C5: 68 | D5: 20 | E5: 20 | F5: 68 | G5: =(14+48)/2 -> 31 | H5: 18 | I5: 64.4 | J5: =(32+200)/2 -> 116
E6: 25 | F6: 77 | G6: =(19+55)/2 -> 37 | H6: 20 | I6: 68 | J6: =(40+280)/2 -> 160
